fUSD/lending_fUSD_20260227
["ID","MTS","AMOUNT","RATE_DAILY","PERIOD"]
[406822754,1772208638944,-500.0,9.808e-05,2]
[406822756,1772208638953,-500.0,9.836e-05,2]
[406822758,1772208638963,-164.37590583,9.836e-05,2]
[406822760,1772208638972,-500.0,9.836e-05,2]
[406822763,1772208638982,-500.0,9.836e-05,2]
[406822765,1772208638991,-500.0,9.89e-05,2]
[406822767,1772208639001,-500.0,9.89e-05,2]
[406822769,1772208639010,-500.0,9.89e-05,2]
[406822771,1772208639020,-500.0,9.945e-05,2]
[406822773,1772208639029,-500.0,9.945e-05,2]
[406822774,1772208639038,-500.0,9.945e-05,2]
[406822776,1772208639047,-28500.66091958,9.95e-05,2]
[406822778,1772208639056,-371.0,9.983e-05,2]
[406822780,1772208639065,-433.0,9.986e-05,2]
[406822782,1772208639075,-500.0,0.0001,2]
[406822784,1772208639084,-500.0,0.0001,2]
[406822786,1772208639093,-150.0,0.0001,2]
[406822788,1772208639102,-1967.31764889,0.0001,2]
[406822790,1772208639112,-151.0,0.0001,2]
[406822792,1772208639121,-151.0,0.0001,2]
[406822793,1772208639131,-151.0,0.0001,2]
[406822794,1772208639140,-151.0,0.0001,2]
[406822795,1772208639149,-151.0,0.0001,2]
[406822796,1772208639159,-151.0,0.0001,2]
[406822797,1772208639169,-151.0,0.0001,2]
[406822798,1772208639178,-151.0,0.0001,2]
[406822799,1772208639188,-151.0,0.0001,2]
[406822800,1772208639197,-151.0,0.0001,2]
[406822801,1772208639207,-151.0,0.0001,2]
[406822802,1772208639217,-151.0,0.0001,2]
[406822803,1772208639227,-151.0,0.0001,2]
[406822804,1772208639238,-151.0,0.0001,2]
[406822805,1772208639248,-151.0,0.0001,2]
[406822806,1772208639258,-151.0,0.0001,2]
[406822807,1772208639267,-151.0,0.0001,2]
[406822808,1772208639277,-151.0,0.0001,2]
[406822809,1772208639286,-151.0,0.0001,2]
[406822810,1772208639296,-151.0,0.0001,2]
[406822811,1772208639305,-1053.03002661,0.0001,2]
[406822812,1772208639315,-1783.25363654,0.0001,2]
[406822813,1772208639324,-368.42176142,0.0001,2]
[406822814,1772208639333,-337.0,0.0001,2]
[406822815,1772208639342,-337.0,0.0001,2]
[406822816,1772208639352,-338.83518363,0.0001,2]
[406822817,1772208639361,-587.0,0.00010042,2]
[406822818,1772208639371,-2351.0,0.00010042,2]
[406822819,1772208639381,-500.0,0.00010055,2]
[406822820,1772208639390,-500.0,0.00010055,2]
[406822821,1772208639399,-500.0,0.00010082,2]
[406822822,1772208639409,-500.0,0.0001011,2]
[406822823,1772208639418,-500.0,0.0001011,2]
[406822824,1772208639427,-182.31,0.00010123,2]
[406822825,1772208639436,-497.09622115,0.00010164,2]
[406822826,1772208639446,-500.0,0.00010164,2]
[406822827,1772208639455,-500.0,0.00010219,2]
[406822828,1772208639465,-500.0,0.00010274,2]
[406822829,1772208639474,-500.0,0.000103,2]
[406822830,1772208639483,-500.0,0.000103,2]
[406822831,1772208639492,-500.0,0.000103,2]
[406822832,1772208639502,-500.0,0.000103,2]
[406822833,1772208639511,-500.0,0.000103,2]
[406822834,1772208639520,-500.0,0.000103,2]
[406822835,1772208639529,-727.93200895,0.000103,2]
[406822836,1772208639539,-500.0,0.000103,2]
[406822837,1772208639548,-500.0,0.000103,2]
[406822838,1772208639558,-500.0,0.000103,2]
[406822839,1772208639567,-888.46058708,0.000103,2]
[406822840,1772208639576,-500.0,0.000103,2]
[406822841,1772208639585,-500.0,0.000103,2]
[406822842,1772208639595,-500.0,0.000103,2]
[406822843,1772208639604,-500.0,0.000103,2]
[406822844,1772208639614,-869.50668288,0.000103,2]
[406822845,1772208639623,-500.0,0.000103,2]
[406822846,1772208639633,-520.0,0.000103,2]
[406822847,1772208639642,-500.0,0.000103,2]
[406822848,1772208639652,-500.0,0.000103,2]
[406822849,1772208639662,-500.0,0.000103,2]
[406822850,1772208639671,-795.55896205,0.000103,2]
[406822851,1772208639680,-611.11529278,0.000103,2]
[406822852,1772208639690,-869.88788903,0.000103,2]
[406822853,1772208639700,-563.07260655,0.000103,2]
[406822854,1772208639709,-500.0,0.000103,2]
[406822855,1772208639723,-500.0,0.000103,2]
[406822857,1772208639733,-500.0,0.000103,2]
[406822859,1772208639742,-744.54912065,0.000103,2]
[406822861,1772208639752,-500.0,0.000103,2]
[406822863,1772208639763,-500.0,0.000103,2]
[406822865,1772208639773,-500.0,0.000103,2]
[406822867,1772208639784,-500.0,0.000103,2]
[406822868,1772208639794,-500.0,0.000103,2]
[406822869,1772208639803,-500.0,0.000103,2]
[406822871,1772208639813,-500.0,0.000103,2]
[406822872,1772208639822,-500.0,0.000103,2]
[406822873,1772208639831,-500.0,0.000103,2]
[406822874,1772208639840,-500.0,0.000103,2]
[406822875,1772208639850,-500.0,0.000103,2]
[406822876,1772208639859,-699.99,0.000103,2]
[406822877,1772208639869,-500.0,0.000103,2]
[406822878,1772208639879,-500.0,0.000103,2]
[406822879,1772208639888,-500.0,0.000103,2]
[406822880,1772208639898,-500.0,0.000103,2]
[406822881,1772208639907,-500.0,0.000103,2]
[406822882,1772208639916,-500.0,0.000103,2]
[406822883,1772208639925,-500.0,0.000103,2]
[406822884,1772208639934,-500.0,0.000103,2]
[406822885,1772208639944,-500.0,0.000103,2]
[406822886,1772208639953,-500.0,0.000103,2]
[406822887,1772208639962,-500.0,0.000103,2]
[406822888,1772208639973,-500.0,0.000103,2]
[406822889,1772208639982,-652.01244718,0.000103,2]
[406822890,1772208639991,-500.0,0.000103,2]
[406822891,1772208640001,-500.0,0.000103,2]
[406822892,1772208640010,-977.54963407,0.000103,2]
[406822893,1772208640019,-500.0,0.000103,2]
[406822894,1772208640029,-700.0,0.000103,2]
[406822895,1772208640038,-500.0,0.000103,2]
[406822897,1772208640048,-700.0,0.000103,2]
[406822899,1772208640058,-500.0,0.000103,2]
[406822901,1772208640069,-500.0,0.000103,2]
[406822903,1772208640080,-700.0,0.000103,2]
[406822905,1772208640090,-500.0,0.000103,2]
[406822907,1772208640100,-700.0,0.000103,2]
[406822909,1772208640110,-736.56274826,0.000103,2]
[406822911,1772208640120,-700.0,0.000103,2]
[406822913,1772208640131,-700.0,0.000103,2]
[406822915,1772208640141,-700.0,0.000103,2]
[406822917,1772208640150,-700.0,0.000103,2]
[406822918,1772208640160,-700.0,0.000103,2]
[406822919,1772208640169,-700.0,0.000103,2]
[406822920,1772208640178,-700.0,0.000103,2]
[406822921,1772208640188,-700.0,0.000103,2]
[406822923,1772208640197,-700.0,0.000103,2]
[406822925,1772208640207,-856.34100069,0.000103,2]
[406822927,1772208640216,-500.0,0.00010329,2]
[406822928,1772208640226,-500.0,0.00010356,2]
[406822929,1772208640235,-357.0,0.00010384,2]
[406822930,1772208640244,-303.34071404,0.0001063,2]
[406822931,1772208640253,-250.0,0.00010823,2]
[406822932,1772208640263,-500.0,0.00010829,2]
[406822933,1772208640273,-500.0,0.00010829,2]
[406822934,1772208640282,-501.75629018,0.00010829,2]
[406822935,1772208640291,-500.0,0.00010829,2]
[406822936,1772208640301,-500.0,0.00010829,2]
[406822937,1772208640310,-500.99420847,0.00010829,2]
[406822938,1772208640320,-455.66842206,0.00010829,2]
[406822939,1772208640329,-500.0,0.00010829,2]
[406822940,1772208640338,-501.82753949,0.00010829,2]
[406822941,1772208640348,-500.0,0.00010829,2]
[406822942,1772208640357,-500.0,0.00010829,2]
[406822943,1772208640366,-500.0,0.00010829,2]
[406822944,1772208640377,-341.49183462,0.00010829,2]
[406822945,1772208640385,-500.0,0.00010829,2]
[406822946,1772208640395,-500.0,0.00010829,2]
[406822947,1772208640404,-2195.67203998,0.000109,2]
[406822948,1772208640414,-2195.67203992,0.000109,2]
[406822949,1772208640424,-736.0,0.00010984,2]
[406822950,1772208640433,-2195.67203992,0.00010994,2]
[406822951,1772208640443,-9460.19512766,0.00011,2]
[406822952,1772208640452,-823.0,0.00011046,2]
[406822953,1772208640462,-3292.0,0.00011046,2]
[406822954,1772208640472,-15552.20665494,0.00011099,2]
[406822955,1772208640482,-15552.20665491,0.00011099,2]
[406822956,1772208640491,-15552.20665491,0.00011099,2]
[406822957,1772208640500,-35922.69063559,0.00011099,2]
[406822958,1772208640510,-35922.69063553,0.00011099,2]
[406822959,1772208640521,-35922.69063553,0.00011099,2]
[406822960,1772208640531,-1512.33,0.00011129,2]
[406822961,1772208640541,-183.5,0.00011233,2]
[406822962,1772208640550,-182.31,0.00011247,2]
[406822963,1772208640559,-1096.18978779,0.00011377,2]
[406822964,1772208640568,-1000.0,0.00011377,2]
[406822965,1772208640578,-1000.0,0.00011377,2]
[406822966,1772208640587,-15552.20665491,0.00011446,2]
[406822967,1772208640597,-35922.69063553,0.00011525,2]
[406822968,1772208640607,-795.017768,0.00011827,2]
[406822969,1772208640616,-2045.958033,0.00011827,2]
[406822970,1772208640626,-197.623189,0.00011827,2]
[406822971,1772208640635,-362.79377,0.00011872,2]
[406822972,1772208640805,-1500.0,0.00011924,2]
[406822973,1772208640815,-1500.0,0.00011924,2]
[406822974,1772208640827,-340.721901,0.00011983,2]
[406822975,1772208640836,-1252.0,0.00012082,2]
[406822976,1772208640845,-1152.0,0.00012151,2]
[406822977,1772208640855,-4609.0,0.00012151,2]
[406822978,1772208640865,-182.31,0.00012372,2]
[406822979,1772208640875,-2195.67203992,0.00012375,2]
[406822980,1772208640884,-2000.0,0.00012472,2]
[406822981,1772208640894,-2000.0,0.00012472,2]
[406822982,1772208640904,-15552.20665491,0.00012522,2]
[406822983,1772208640913,-35922.69063553,0.00012588,2]
[406822984,1772208640924,-203.69193972,0.0001269,2]
[406822985,1772208640933,-500.0,0.0001289,2]
[406822986,1772208640944,-500.0,0.0001289,2]
[406822987,1772208640954,-500.0,0.0001289,2]
[406822988,1772208640964,-500.0,0.0001289,2]
[406822989,1772208640974,-348.64803995,0.0001289,2]
[406822990,1772208640989,-151.35196005,0.0001289,2]
[406822991,1772208640999,-500.0,0.0001289,2]
[406822992,1772208641008,-500.0,0.0001289,2]
[406822993,1772208641018,-500.0,0.0001289,2]
[406822994,1772208641028,-500.0,0.0001289,2]
[406822995,1772208641038,-159.93144526,0.0001289,2]
[406822996,1772208641050,-340.06855474,0.0001289,2]
[406822997,1772208641059,-500.0,0.0001289,2]
[406822998,1772208641068,-500.0,0.0001289,2]
[406822999,1772208641078,-500.0,0.0001289,2]
[406823000,1772208641087,-504.04222443,0.0001289,2]
[406823001,1772208641097,-500.0,0.0001289,2]
[406823002,1772208641107,-851.56555211,0.0001289,2]
[406823003,1772208641117,-500.0,0.0001289,2]
[406823004,1772208641127,-500.0,0.0001289,2]
[406823005,1772208641137,-500.0,0.0001289,2]
[406823006,1772208641146,-500.0,0.0001289,2]
[406823007,1772208641156,-500.0,0.0001289,2]
[406823008,1772208641165,-500.0,0.0001289,2]
[406823009,1772208641175,-500.0,0.0001289,2]
[406823010,1772208641184,-500.0,0.0001289,2]
[406823011,1772208641193,-500.0,0.0001289,2]
[406823012,1772208641203,-500.0,0.0001289,2]
[406823013,1772208641212,-500.0,0.0001289,2]
[406823014,1772208641221,-500.0,0.0001289,2]
[406823015,1772208641231,-500.0,0.0001289,2]
[406823016,1772208641240,-500.0,0.0001289,2]
[406823017,1772208641250,-500.0,0.0001289,2]
[406823018,1772208641259,-500.0,0.0001289,2]
[406823019,1772208641269,-500.0,0.0001289,2]
[406823020,1772208641278,-500.0,0.0001289,2]
[406823021,1772208641287,-500.0,0.0001289,2]
[406823022,1772208641296,-500.0,0.0001289,2]
[406823023,1772208641305,-500.0,0.0001289,2]
[406823024,1772208641315,-500.0,0.0001289,2]
[406823025,1772208641324,-500.0,0.0001289,2]
[406823026,1772208641334,-500.0,0.0001289,2]
[406823027,1772208641343,-17.7493115,0.0001289,2]
[406823028,1772208641465,-482.2506885,0.0001289,2]
[406823029,1772208641475,-158.39398795,0.0001289,2]
[406823030,1772208641490,-541.60601205,0.0001289,2]
[406823031,1772208641500,-500.0,0.0001289,2]
[406823032,1772208641510,-500.0,0.0001289,2]
[406823033,1772208641519,-700.0,0.0001289,2]
[406823034,1772208641529,-500.0,0.0001289,2]
[406823035,1772208641538,-538.76743825,0.0001289,2]
[406823036,1772208641549,-161.23256175,0.0001289,2]
[406823037,1772208641558,-500.0,0.0001289,2]
[406823038,1772208641567,-500.0,0.0001289,2]
[406823039,1772208641576,-500.0,0.0001289,2]
[406823040,1772208641585,-500.0,0.0001289,2]
[406823041,1772208641595,-361.2486032,0.0001289,2]
[406823042,1772208642525,-338.7513968,0.0001289,2]
[406823043,1772208642535,-500.0,0.0001289,2]
[406823044,1772208642545,-500.0,0.0001289,2]
[406823045,1772208642554,-500.0,0.0001289,2]
[406823046,1772208642563,-700.0,0.0001289,2]
[406823047,1772208642573,-500.0,0.0001289,2]
[406823048,1772208642582,-500.0,0.0001289,2]
[406823049,1772208642591,-500.0,0.0001289,2]
[406823050,1772208642600,-700.0,0.0001289,2]
[406823051,1772208642609,-500.0,0.0001289,2]
[406823052,1772208642618,-500.0,0.0001289,2]
[406823053,1772208642627,-500.0,0.0001289,2]
[406823054,1772208642636,-500.0,0.0001289,2]
[406823055,1772208642646,-700.0,0.0001289,2]
[406823056,1772208642655,-500.0,0.0001289,2]
[406823057,1772208642664,-500.0,0.0001289,2]
[406823058,1772208642673,-500.0,0.0001289,2]
[406823059,1772208642682,-500.0,0.0001289,2]
[406823060,1772208642691,-700.0,0.0001289,2]
[406823061,1772208642701,-500.0,0.0001289,2]
[406823062,1772208642710,-500.0,0.0001289,2]
[406823063,1772208642728,-500.0,0.0001289,2]
[406823064,1772208642738,-700.0,0.0001289,2]
[406823065,1772208642747,-500.0,0.0001289,2]
[406823066,1772208642758,-500.0,0.0001289,2]
[406823067,1772208642768,-700.0,0.0001289,2]
[406823068,1772208642778,-500.0,0.0001289,2]
[406823069,1772208642787,-500.0,0.0001289,2]
[406823070,1772208642797,-500.0,0.0001289,2]
[406823071,1772208642807,-700.0,0.0001289,2]
[406823073,1772208642816,-500.0,0.0001289,2]
[406823074,1772208642825,-500.0,0.0001289,2]
[406823075,1772208642834,-700.0,0.0001289,2]
[406823076,1772208642845,-500.0,0.0001289,2]
[406823077,1772208642854,-700.0,0.0001289,2]
[406823078,1772208642865,-700.0,0.0001289,2]
[406823079,1772208642874,-700.0,0.0001289,2]
[406823081,1772208642883,-1649.88961964,0.00013,15]
[406823083,1772208642892,-2500.0,0.0001302,2]
[406823086,1772208642900,-320.22794059,0.0001302,2]
[406823087,1772208642910,-5368.66478509,0.0001305,2]
[406823088,1772208642918,-1783.25363654,0.00013066,2]
[406823089,1772208642929,-640.0,0.00013295,2]
[406823090,1772208642942,-1613.0,0.00013366,2]
[406823091,1772208642958,-6453.0,0.00013366,2]
[406823092,1772208642971,-182.31,0.00013497,2]
[406823093,1772208642982,-1000.0,0.000135,2]
[406823094,1772208642991,-4799.34212235,0.0001355,2]
[406823095,1772208643000,-2000.0,0.00013568,2]
[406823096,1772208643009,-28931.99987184,0.0001358,2]
[406823097,1772208643018,-15552.20665491,0.00013597,2]
[406823098,1772208643027,-35922.69063553,0.0001365,2]
[406823099,1772208643036,-895.83,0.00013698,2]
[406823100,1772208643045,-895.83,0.00013698,2]
[406823101,1772208643054,-895.83,0.00013698,2]
[406823102,1772208643063,-895.83,0.00013698,2]
[406823103,1772208643071,-895.83,0.00013698,2]
[406823104,1772208643080,-895.83,0.00013698,2]
[406823105,1772208643089,-895.83,0.00013698,2]
[406823106,1772208643097,-895.83,0.00013698,2]
[406823107,1772208643106,-895.83,0.00013698,2]
[406823108,1772208643116,-895.83,0.00013698,2]
[406823109,1772208643125,-895.83,0.00013698,2]
[406823110,1772208643134,-895.83,0.00013698,2]
[406823111,1772208643143,-895.83,0.00013698,2]
[406823112,1772208643152,-895.83,0.00013698,2]
[406823113,1772208643161,-500.0,0.00013698,2]
[406823114,1772208643170,-500.0,0.00013698,2]
[406823115,1772208643179,-500.0,0.00013698,2]
[406823116,1772208643188,-500.0,0.00013698,2]
[406823117,1772208643197,-500.0,0.00013698,2]
[406823118,1772208643205,-500.0,0.00013698,2]
[406823119,1772208643215,-500.0,0.00013698,2]
[406823120,1772208643223,-500.0,0.00013698,2]
[406823121,1772208643232,-620.13,0.00013698,2]
[406823122,1772208643241,-620.13,0.00013698,2]
[406823123,1772208643250,-620.13,0.00013698,2]
[406823124,1772208643259,-620.13,0.00013698,2]
[406823125,1772208643268,-620.13,0.00013698,2]
[406823126,1772208643277,-620.13,0.00013698,2]
[406823127,1772208643286,-620.13,0.00013698,2]
[406823128,1772208643294,-620.13,0.00013698,2]
[406823129,1772208643304,-620.13,0.00013698,2]
[406823130,1772208643313,-620.13,0.00013698,2]
[406823131,1772208643323,-620.13,0.00013698,2]
[406823132,1772208643331,-620.13,0.00013698,2]
[406823133,1772208643341,-620.13,0.00013698,2]
[406823134,1772208643350,-620.13,0.00013698,2]
[406823135,1772208643359,-500.0,0.00013698,2]
[406823136,1772208643368,-500.0,0.00013698,2]
[406823137,1772208643377,-500.0,0.00013698,2]
[406823138,1772208643386,-500.0,0.00013698,2]
[406823139,1772208643395,-500.0,0.00013698,2]
[406823140,1772208643404,-500.0,0.00013698,2]
[406823141,1772208643412,-500.0,0.00013698,2]
[406823142,1772208643421,-500.0,0.00013698,2]
[406823143,1772208643430,-500.0,0.00013698,2]
[406823144,1772208643439,-500.0,0.00013698,2]
[406823145,1772208643449,-500.0,0.00013698,2]
[406823147,1772208643458,-500.0,0.00013698,2]
[406823148,1772208643468,-500.0,0.00013698,2]
[406823150,1772208643479,-500.0,0.00013698,2]
[406823152,1772208643488,-500.0,0.00013698,2]
[406823154,1772208643497,-500.0,0.00013698,2]
[406823155,1772208643506,-563.9784206,0.00013698,2]
[406823156,1772208643515,-500.0,0.00013698,2]
[406823157,1772208643524,-500.0,0.00013698,2]
[406823158,1772208643532,-500.0,0.00013698,2]
[406823159,1772208643541,-500.0,0.00013698,2]
[406823160,1772208643551,-500.0,0.00013698,2]
[406823161,1772208643561,-500.0,0.00013698,2]
[406823162,1772208643571,-500.0,0.00013698,2]
[406823163,1772208643580,-500.0,0.00013698,2]
[406823164,1772208643589,-500.0,0.00013698,2]
[406823165,1772208643599,-500.0,0.00013698,2]
[406823166,1772208643608,-500.0,0.00013698,2]
[406823167,1772208643618,-500.0,0.00013698,2]
[406823168,1772208643627,-500.0,0.00013698,2]
[406823169,1772208643636,-500.0,0.00013698,2]
[406823170,1772208643646,-500.0,0.00013698,2]
[406823171,1772208643655,-500.0,0.00013698,2]
[406823172,1772208643664,-500.0,0.00013698,2]
[406823173,1772208643673,-500.0,0.00013698,2]
[406823174,1772208643682,-278.70046284,0.00013698,2]
[406823175,1772208643691,-500.0,0.00013698,2]
[406823176,1772208643701,-500.0,0.00013698,2]
[406823177,1772208643710,-500.0,0.00013698,2]
[406823179,1772208643720,-500.0,0.00013698,2]
[406823181,1772208643734,-500.0,0.00013698,2]
[406823183,1772208643744,-500.0,0.00013698,2]
[406823185,1772208643753,-500.0,0.00013698,2]
[406823187,1772208643762,-500.0,0.00013698,2]
[406823189,1772208643778,-500.0,0.00013698,2]
[406823191,1772208643787,-500.0,0.00013698,2]
[406823193,1772208643798,-500.0,0.00013698,2]
[406823195,1772208643807,-500.0,0.00013698,2]
[406823196,1772208643816,-500.0,0.00013698,2]
[406823197,1772208643825,-500.0,0.00013698,2]
[406823198,1772208643834,-500.0,0.00013698,2]
[406823199,1772208643844,-500.0,0.00013698,2]
[406823200,1772208643853,-386.19326799,0.00013698,2]
[406823201,1772208643862,-583.33,0.00013698,2]
[406823202,1772208643871,-583.33,0.00013698,2]
[406823203,1772208643880,-583.33,0.00013698,2]
[406823204,1772208643889,-583.33,0.00013698,2]
[406823205,1772208643899,-583.33,0.00013698,2]
[406823206,1772208643908,-583.33,0.00013698,2]
[406823207,1772208643917,-583.33,0.00013698,2]
[406823208,1772208643926,-583.33,0.00013698,2]
[406823209,1772208643935,-583.33,0.00013698,2]
[406823210,1772208643944,-583.33,0.00013698,2]
[406823211,1772208643953,-583.33,0.00013698,2]
[406823212,1772208643963,-583.33,0.00013698,2]
[406823213,1772208643972,-583.33,0.00013698,2]
[406823214,1772208643983,-583.33,0.00013698,2]
[406823215,1772208643992,-500.0,0.00013698,2]
[406823216,1772208644002,-500.0,0.00013698,2]
[406823217,1772208644011,-500.0,0.00013698,2]
[406823218,1772208644021,-500.0,0.00013698,2]
[406823219,1772208644030,-500.0,0.00013698,2]
[406823220,1772208644041,-500.0,0.00013698,2]
[406823221,1772208644051,-500.0,0.00013698,2]
[406823222,1772208644060,-500.0,0.00013698,2]
[406823223,1772208644071,-500.0,0.00013698,2]
[406823224,1772208644080,-500.0,0.00013698,2]
[406823225,1772208644090,-500.0,0.00013698,2]
[406823226,1772208644099,-500.0,0.00013698,2]
[406823227,1772208644108,-500.0,0.00013698,2]
[406823228,1772208644118,-500.0,0.00013698,2]
[406823229,1772208644127,-500.0,0.00013698,2]
[406823230,1772208644136,-500.0,0.00013698,2]
[406823231,1772208644146,-500.0,0.00013698,2]
[406823232,1772208644156,-500.0,0.00013698,2]
[406823233,1772208644165,-500.0,0.00013698,2]
[406823234,1772208644175,-500.0,0.00013698,2]
[406823235,1772208644184,-500.0,0.00013698,2]
[406823236,1772208644194,-500.0,0.00013698,2]
[406823237,1772208644204,-500.0,0.00013698,2]
[406823238,1772208644213,-500.0,0.00013698,2]
[406823239,1772208644223,-500.0,0.00013698,2]
[406823240,1772208644233,-500.0,0.00013698,2]
[406823241,1772208644243,-500.0,0.00013698,2]
[406823242,1772208644253,-500.0,0.00013698,2]
[406823243,1772208644262,-500.0,0.00013698,2]
[406823244,1772208644271,-500.0,0.00013698,2]
[406823245,1772208644281,-500.0,0.00013698,2]
[406823246,1772208644291,-500.0,0.00013698,2]
[406823247,1772208644300,-500.0,0.00013698,2]
[406823248,1772208644311,-500.0,0.00013698,2]
[406823249,1772208644320,-500.0,0.00013698,2]
[406823250,1772208644330,-494.09872212,0.00013698,2]
[406823251,1772208644341,-500.0,0.00013698,2]
[406823252,1772208644350,-500.0,0.00013698,2]
[406823253,1772208644359,-500.0,0.00013698,2]
[406823254,1772208644369,-500.0,0.00013698,2]
[406823255,1772208644379,-500.0,0.00013698,2]
[406823256,1772208644388,-500.0,0.00013698,2]
[406823257,1772208644398,-500.0,0.00013698,2]
[406823258,1772208644407,-500.0,0.00013698,2]
[406823259,1772208644418,-500.0,0.00013698,2]
[406823260,1772208644427,-500.0,0.00013698,2]
[406823261,1772208644436,-500.0,0.00013698,2]
[406823262,1772208644447,-500.0,0.00013698,2]
[406823263,1772208644457,-500.0,0.00013698,2]
[406823264,1772208644467,-500.0,0.00013698,2]
[406823265,1772208644477,-500.0,0.00013698,2]
[406823266,1772208644486,-500.0,0.00013698,2]
[406823267,1772208644495,-297.82549676,0.00013698,2]
[406823268,1772208644504,-500.0,0.00013698,2]
[406823269,1772208644514,-500.0,0.00013698,2]
[406823270,1772208644523,-500.0,0.00013698,2]
[406823271,1772208644532,-500.0,0.00013698,2]
[406823272,1772208644542,-500.0,0.00013698,2]
[406823273,1772208644551,-500.0,0.00013698,2]
[406823274,1772208644560,-596.4968816,0.00013698,2]
[406823275,1772208644570,-500.0,0.00013698,2]
[406823276,1772208644580,-500.0,0.00013698,2]
[406823277,1772208644589,-500.0,0.00013698,2]
[406823278,1772208644599,-500.0,0.00013698,2]
[406823279,1772208644608,-500.0,0.00013698,2]
[406823280,1772208644617,-413.53601113,0.00013698,2]
[406823281,1772208644627,-500.0,0.00013698,2]
[406823282,1772208644636,-500.0,0.00013698,2]
[406823283,1772208644645,-500.0,0.00013698,2]
[406823284,1772208644654,-500.0,0.00013698,2]
[406823285,1772208644663,-500.0,0.00013698,2]
[406823286,1772208644672,-210.48,0.00013698,2]
[406823287,1772208644681,-2657.75,0.00013699,2]
[406823288,1772208644690,-29999.99,0.00013699,2]
[406823289,1772208644699,-9999.99,0.00013699,2]
[406823290,1772208644708,-2195.67203992,0.00013757,2]
[406823291,1772208644721,-15552.20665491,0.00014673,2]
[406823292,1772208644730,-1838.0,0.00014702,2]
[406823293,1772208644740,-2005.0,0.00014702,2]
[406823294,1772208644749,-35922.69063553,0.00014713,2]
[406823295,1772208644759,-250.0,0.00015,2]
[406823296,1772208644768,-2195.67203992,0.00015138,2]
[406823297,1772208644777,-4799.34212234,0.00015725,2]
[406823298,1772208644787,-15552.20665491,0.00015749,2]
[406823299,1772208644797,-1855.04146,0.0001577,7]
[406823300,1772208644806,-4773.902077,0.0001577,7]
[406823301,1772208644815,-164.685991,0.0001577,7]
[406823302,1772208644824,-35922.69063553,0.00015775,2]
[406823303,1772208644833,-302.328142,0.0001583,7]
[406823304,1772208644843,-795.017769,0.00015977,7]
[406823305,1772208644852,-167.0,0.00016,2]
[406823306,1772208644861,-151.0,0.00016197,2]
[406823307,1772208644870,-58314.76884198,0.000162,5]
[406823308,1772208644879,-306.73,0.00016249,2]
[406823309,1772208644888,-500.0,0.00016438,2]
[406823310,1772208644897,-500.0,0.00016493,2]
[406823311,1772208644906,-2195.67203992,0.00016519,2]